bitfinex-derivatives/quotes_BTCF0:USTF0_20251229
["timestamp","ask_amount","ask_price","bid_price","bid_amount"]
[1766969399159,0.0113203,88408.0,88387.0,0.15324]
[1766969399365,0.0113206,88405.0,88387.0,0.15324]
[1766969399755,0.0113201,88409.0,88388.0,0.15324]
[1766969400356,0.0113201,88409.0,88389.0,0.15324]
[1766969400559,0.00016966,88412.0,88385.0,0.00016966]
[1766969400765,0.09628,88415.0,88390.0,0.15324]
[1766969400965,0.011319,88418.0,88395.0,0.0113218]
[1766969401462,0.09628,88504.0,88416.0,0.0113191]
[1766969401652,0.0113107,88483.0,88449.0,0.0113148]
[1766969401855,0.22459545,88500.0,88449.0,0.01128]
[1766969401856,0.00011302,88463.0,88449.0,0.01128]
[1766969402265,0.00622598,88502.0,88450.0,0.23483212]
[1766969402455,0.0113089,88497.0,88459.0,0.0113136]
[1766969402660,0.0113089,88497.0,88460.0,0.15336]
[1766969403058,0.0113108,88482.0,88452.0,0.05704]
[1766969403260,0.0113111,88479.0,88458.0,0.00016955]
[1766969403564,0.0113115,88476.0,88458.0,0.00016955]
[1766969403863,0.16755545,88490.0,88458.0,0.00016955]
[1766969404167,0.09624,88522.0,88479.0,0.011311]
[1766969404381,0.0113094,88493.0,88482.0,5e-08]
[1766969404664,0.09624,88492.0,88452.0,0.0113145]
[1766969404865,0.56512008,88481.0,88452.0,0.0113145]
[1766969405162,0.56512008,88481.0,88425.0,0.06290285]
[1766969405163,0.0113121,88472.0,88444.0,0.09624]
[1766969405363,0.15332,88480.0,88417.0,0.0886161]
[1766969405556,0.0113141,88456.0,88440.0,5e-08]
[1766969405757,0.011315,88449.0,88440.0,5e-08]
[1766969406062,0.0113143,88454.0,88440.0,5e-08]
[1766969406962,0.09624,88455.0,88440.0,5e-08]
[1766969407963,0.0113144,88454.0,88440.0,5e-08]
[1766969408164,0.05708,88453.0,88440.0,5e-08]
[1766969408359,0.15332,88453.0,88440.0,5e-08]
[1766969408562,0.09624,88465.0,88440.0,5e-08]
[1766969408763,0.0113117,88475.0,88441.0,0.09624]
[1766969408764,0.05708,88467.0,88441.0,0.09624]
[1766969408965,0.05708,88467.0,88446.0,0.0113152]
[1766969409170,0.09624,88469.0,88454.0,0.0113142]
[1766969409355,0.09624,88475.0,88453.0,0.0113144]
[1766969409662,0.0001695,88473.0,88457.0,0.0113139]
[1766969410055,0.0001695,88473.0,88461.0,0.0113133]
[1766969410255,0.0113083,88501.0,88465.0,0.0113128]
[1766969410464,0.106,88500.0,88463.0,0.09624]
[1766969410665,0.56512008,88499.0,88464.0,0.09624]
[1766969410861,0.0113088,88497.0,88469.0,0.0113123]
[1766969411055,0.56512008,88497.0,88469.0,0.0113123]
[1766969411261,0.56512008,88497.0,88474.0,0.00016955]
[1766969412471,0.0113089,88496.0,88474.0,0.00016955]
[1766969413072,0.56512008,88497.0,88459.0,0.0113136]
[1766969413266,0.56512008,88497.0,88454.0,0.0086]
[1766969413476,0.106,88500.0,88459.0,0.0962]
[1766969413773,0.56512008,88490.0,88452.0,0.0962]
[1766969414067,0.00016955,88480.0,88462.0,0.00016955]
[1766969414273,0.15328,88479.0,88462.0,0.00016955]
[1766969415268,0.15328,88479.0,88432.0,0.06148528]
[1766969415269,0.0113119,88473.0,88441.0,0.0113159]
[1766969415471,0.15328,88479.0,88440.0,0.107516]
[1766969415472,0.0113124,88469.0,88440.0,0.107516]
[1766969415674,0.15328,88468.0,88440.0,0.107516]
[1766969416369,0.00016955,88463.0,88445.0,0.00016955]
[1766969416766,0.56512008,88461.0,88446.0,0.0113153]
[1766969417167,0.56512008,88461.0,88445.0,0.00016955]
[1766969417168,0.56512008,88461.0,88445.0,0.01148495]
[1766969417368,0.56512008,88461.0,88448.0,0.0113149]
[1766969417671,0.54112008,88461.0,88448.0,0.0113149]
[1766969417977,0.54112008,88461.0,88446.0,0.0113152]
[1766969418374,0.05708,88467.0,88449.0,0.0113148]
[1766969418567,0.05708,88467.0,88445.0,0.00016955]
[1766969418568,0.05708,88467.0,88453.0,0.0113143]
[1766969418968,0.54112008,88466.0,88448.0,0.011315]
[1766969419172,0.0113115,88477.0,88448.0,0.011315]
[1766969419377,0.00016955,88471.0,88454.0,0.00016955]
[1766969419570,0.00016955,88471.0,88455.0,0.0113141]
[1766969420575,0.00016955,88471.0,88458.0,0.0113137]
[1766969420776,0.00016955,88471.0,88454.0,0.01148375]
[1766969421475,0.00016955,88471.0,88460.0,0.0113135]
[1766969421672,5e-08,88471.0,88455.0,0.0962]
[1766969421870,5e-08,88471.0,88465.0,0.0113128]
[1766969422072,3e-08,88471.0,88455.0,0.11303841]
[1766969422277,3e-08,88471.0,88454.0,0.01148375]
[1766969422474,3e-08,88471.0,88454.0,0.00016955]
[1766969423783,0.1645523,88470.0,88454.0,0.00016955]
[1766969423983,0.1645523,88470.0,88433.0,0.0962]
[1766969423984,0.15324,88470.0,88433.0,0.0962]
[1766969424283,0.0113147,88452.0,88432.0,0.0962]
[1766969424583,0.0113149,88450.0,88429.0,0.0113175]
[1766969424777,0.0962,88451.0,88411.0,0.06375936]
[1766969424987,0.0962,88451.0,88405.0,0.0962]
[1766969424988,0.0113164,88438.0,88405.0,0.0962]
[1766969425181,0.01148535,88443.0,88421.0,0.0113184]
[1766969425382,0.10984,88442.0,88421.0,0.0113184]
[1766969425877,0.00016955,88443.0,88423.0,0.0113183]
[1766969426177,0.0962,88455.0,88430.0,0.0113173]
[1766969426376,0.0113152,88448.0,88431.0,0.01749537]
[1766969426569,0.0113152,88448.0,88432.0,0.01749537]
[1766969426769,0.011315,88449.0,88433.0,0.01749537]
[1766969426972,0.0113154,88446.0,88424.0,0.0113181]
[1766969427178,0.00016955,88444.0,88427.0,0.0113177]
[1766969427383,0.00016955,88444.0,88430.0,0.0113173]
[1766969427582,0.00016955,88444.0,88426.0,0.01148735]
[1766969427776,0.0113157,88443.0,88426.0,0.00016955]
[1766969427977,0.0113162,88440.0,88426.0,0.00016955]
[1766969428182,0.0113161,88441.0,88426.0,0.00016955]
[1766969428883,0.15332,88443.0,88426.0,0.00016955]
[1766969429177,0.15332,88443.0,88418.0,0.0113188]
[1766969429178,0.0113161,88440.0,88418.0,0.0113188]
[1766969429383,0.0113161,88440.0,88417.0,0.00012757]
[1766969429982,0.0113165,88437.0,88420.0,0.00016955]
[1766969430383,0.011316,88441.0,88420.0,0.00016955]
[1766969430682,0.05728955,88444.0,88420.0,0.03016955]
[1766969430887,0.0962,88443.0,88431.0,0.0113172]
[1766969431083,0.0962,88443.0,88420.0,0.00016955]
[1766969431790,0.0962,88443.0,88433.0,0.00226161]
[1766969432789,0.00016955,88444.0,88433.0,0.00226161]
[1766969432987,0.00016955,88444.0,88420.0,0.00016955]
[1766969433189,0.00016955,88444.0,88421.0,0.0113184]
[1766969433491,0.0113162,88439.0,88420.0,0.00016955]
[1766969436184,0.00016955,88444.0,88420.0,0.01148815]
[1766969436384,0.00016955,88444.0,88423.0,0.0113182]
[1766969436579,0.01148525,88444.0,88420.0,0.00016955]
[1766969436779,0.0113164,88438.0,88420.0,0.00016955]
[1766969436982,0.0113169,88435.0,88420.0,0.00016955]
[1766969437181,0.00016955,88444.0,88406.0,0.0113203]
[1766969437182,0.15332,88434.0,88406.0,0.0113203]
[1766969437393,0.0962,88433.0,88409.0,0.01132]
[1766969437591,0.0113172,88432.0,88409.0,0.01132]
[1766969438290,0.00010942,88431.0,88412.0,0.00016965]
[1766969439197,0.0113174,88430.0,88412.0,0.00016965]
[1766969439489,0.0113179,88426.0,88412.0,0.00016965]
[1766969439682,0.11415354,88430.0,88412.0,0.00016965]
[1766969439883,0.1118927,88430.0,88412.0,0.00016965]
[1766969440084,0.00010942,88431.0,88412.0,0.00016965]
[1766969440284,0.01142672,88431.0,88412.0,0.00016965]
[1766969441088,0.11415354,88430.0,88412.0,0.00016965]
[1766969441292,0.00010942,88431.0,88412.0,0.00016965]
[1766969441590,0.00010942,88431.0,88414.0,0.0113193]
[1766969441795,0.00010942,88431.0,88413.0,0.0113194]
[1766969442184,0.00010942,88431.0,88416.0,0.0113191]
[1766969442694,0.00010942,88431.0,88412.0,0.10768925]
[1766969442886,0.00010942,88431.0,88412.0,0.00016965]
[1766969443089,0.11415354,88430.0,88408.0,0.0113201]
[1766969443391,0.0113177,88428.0,88408.0,0.0113201]
[1766969443691,0.0684377,88428.0,88408.0,0.0113201]
[1766969443897,0.05712,88428.0,88408.0,0.0113201]
[1766969444090,0.05712,88428.0,88410.0,0.0113199]
[1766969444292,0.05728965,88428.0,88410.0,0.0113199]
[1766969444492,5e-08,88428.0,88410.0,0.11415354]
[1766969444697,5e-08,88428.0,88409.0,0.00016965]
[1766969444990,5e-08,88428.0,88422.0,0.0113184]
[1766969445487,5e-08,88428.0,88409.0,0.00016965]
[1766969445686,5e-08,88428.0,88414.0,0.0113194]
[1766969447193,5e-08,88428.0,88409.0,0.01148965]
[1766969447390,5e-08,88428.0,88409.0,0.00016965]
[1766969447595,0.3015,88427.0,88311.0,5.77352]
[1766969447783,0.3015,88427.0,88271.0,0.14045201]
[1766969447784,0.1134,88400.0,88350.0,0.11415354]
[1766969447987,0.17739127,88399.0,88360.0,0.11415354]
[1766969448191,0.0113224,88391.0,88360.0,0.0113263]
[1766969448388,0.0962,88398.0,88358.0,0.0962]
[1766969448588,0.0962,88398.0,88369.0,4e-08]
[1766969448589,0.0113241,88378.0,88369.0,4e-08]
[1766969448789,0.00016974,88387.0,88336.0,0.0962]
[1766969448790,0.0113246,88374.0,88336.0,0.0962]
[1766969448988,0.0113255,88367.0,88336.0,0.0962]
[1766969449196,0.11415354,88360.0,88329.0,0.0113302]
[1766969449396,0.15387287,88359.0,88323.0,0.0962]
[1766969449593,0.0113287,88342.0,88316.0,0.0962]
[1766969449896,0.02639771,88358.0,88309.0,0.2518929]
[1766969449897,0.01133,88332.0,88309.0,0.09624]
[1766969450088,0.1538,88331.0,88314.0,0.0113321]
[1766969450288,0.1538,88331.0,88309.0,0.1075728]
[1766969450597,0.1538,88331.0,88315.0,0.31480492]
[1766969450900,0.00010499,88341.0,88316.0,0.0113319]
[1766969451094,0.00010499,88341.0,88328.0,0.0113304]
[1766969451687,0.11415354,88340.0,88318.0,0.0113317]
[1766969451892,0.11415354,88340.0,88314.0,0.00011311]
[1766969451893,0.12548244,88340.0,88314.0,0.00011311]
[1766969452091,0.11415354,88340.0,88315.0,0.0113321]
[1766969452291,0.0113291,88339.0,88314.0,0.00011311]
[1766969452800,0.11415354,88340.0,88314.0,0.00011311]
[1766969453099,0.11415354,88330.0,88300.0,0.011334]
[1766969453300,0.0113305,88328.0,88294.0,0.0113347]
[1766969453504,0.11415354,88320.0,88294.0,0.0113347]
[1766969453898,0.05756,88319.0,88294.0,0.0113347]
[1766969454098,0.09624,88318.0,88294.0,0.0113347]
[1766969454305,0.09624,88318.0,88298.0,0.0113342]
[1766969455802,0.09624,88318.0,88293.0,0.0113349]
[1766969455998,0.09624,88318.0,88299.0,0.31480492]
[1766969456486,0.00016984,88320.0,88300.0,0.011334]
[1766969456687,0.15384,88319.0,88300.0,0.011334]
[1766969456889,0.00016984,88320.0,88300.0,0.011334]
[1766969457188,0.15384,88319.0,88309.0,0.31480492]
[1766969458009,0.15384,88319.0,88297.0,0.0113343]
[1766969458307,0.15384,88319.0,88302.0,0.29380492]
[1766969458693,0.15384,88319.0,88292.0,0.011335]
[1766969458895,0.15384,88319.0,88296.0,0.29380492]
[1766969459600,0.15384,88319.0,88296.0,0.30513942]
[1766969460596,0.15384,88318.0,88296.0,0.29380492]
[1766969460798,0.09644984,88320.0,88308.0,0.011333]
[1766969461106,0.05756,88319.0,88297.0,0.0113344]
[1766969461404,0.05756,88319.0,88296.0,0.0113345]
[1766969461606,0.05756,88319.0,88298.0,0.0113343]
[1766969462398,0.05756,88319.0,88297.0,0.29380492]
[1766969462694,0.05756,88319.0,88291.0,0.09628]
[1766969462695,0.11415354,88310.0,88291.0,0.09628]
[1766969462895,0.11415354,88301.0,88278.0,0.0113369]
[1766969463103,0.05781584,88300.0,88277.0,0.0113369]
[1766969463407,0.05781584,88300.0,88284.0,0.25180492]
[1766969463603,0.05756,88299.0,88284.0,0.00936194]
[1766969463800,0.05756,88299.0,88253.0,0.00226622]
[1766969463801,0.11415354,88294.0,88262.0,0.09632]
[1766969464204,0.11415354,88290.0,88262.0,0.09632]
[1766969464504,0.11415354,88290.0,88269.0,0.0113379]
[1766969464505,0.15392,88289.0,88269.0,0.0113379]
[1766969464714,0.00028238,88288.0,88270.0,0.00016984]
[1766969466112,0.0113358,88287.0,88270.0,0.00016984]
[1766969466303,0.0113376,88273.0,88253.0,0.00226622]
[1766969466502,0.011338,88269.0,88253.0,0.00226622]
[1766969466709,0.11415354,88270.0,88253.0,0.00226622]
[1766969466710,0.0113383,88267.0,88253.0,0.00226622]
[1766969466908,0.0113387,88264.0,88253.0,0.00226622]
[1766969467106,0.0113387,88264.0,88244.0,0.09632]
[1766969467301,0.0113389,88262.0,88244.0,0.09632]
[1766969467609,0.0113389,88262.0,88241.0,0.05756]
[1766969468115,0.0113394,88258.0,88241.0,0.05756]
[1766969468415,0.05756,88258.0,88238.0,0.01156843]
[1766969468611,0.05756,88258.0,88238.0,0.03022643]
[1766969468811,0.05756,88258.0,88238.0,0.00022643]
[1766969469115,0.0113397,88256.0,88238.0,0.00022643]
[1766969469697,0.00011349,88257.0,88238.0,0.00022643]
[1766969470603,0.01134,88254.0,88238.0,0.00022643]
[1766969471017,0.0113359,88286.0,88258.0,0.0113393]
[1766969471208,0.09636,88288.0,88259.0,0.1652593]
[1766969471407,0.0113362,88284.0,88259.0,0.0113393]
[1766969471603,0.0113362,88284.0,88261.0,0.011339]
[1766969471811,0.0113362,88284.0,88260.0,0.15392]
[1766969471812,0.011337,88277.0,88260.0,0.09636]
[1766969472107,0.05772591,88276.0,88260.0,0.07536]
[1766969472307,0.00012591,88276.0,88260.0,0.07536]
[1766969472609,0.05768591,88276.0,88260.0,0.07536]
[1766969473815,0.05768591,88276.0,88261.0,0.011339]
[1766969474720,0.00012591,88276.0,88264.0,0.0113386]
[1766969475016,0.00016994,88277.0,88264.0,0.0113386]
[1766969475219,0.00016994,88277.0,88264.0,0.0688986]
[1766969475516,0.05756,88306.0,88281.0,0.0113364]
[1766969475718,0.11415354,88310.0,88281.0,0.0113364]
[1766969475913,0.00011491,88305.0,88287.0,0.0113356]
[1766969476220,0.05756,88304.0,88287.0,0.0113356]
[1766969476421,0.05756,88304.0,88291.0,0.0113351]
[1766969476422,0.00016994,88304.0,88291.0,0.0113351]
[1766969477417,0.02747608,88303.0,88291.0,0.0113351]
[1766969477724,0.00011491,88305.0,88296.0,0.0113345]
[1766969478323,0.05756,88323.0,88300.0,0.011334]
[1766969478519,0.11415354,88310.0,88295.0,0.0113346]
[1766969478720,0.05756,88323.0,88298.0,0.0113342]
[1766969479016,0.05756,88323.0,88294.0,0.0113348]
[1766969479017,0.00016984,88310.0,88294.0,0.0113348]
[1766969479520,0.05756,88317.0,88293.0,0.15408984]
[1766969479716,0.05756,88317.0,88298.0,0.0113342]
[1766969480120,0.0113303,88329.0,88305.0,0.0113334]
[1766969480421,0.00016984,88326.0,88308.0,0.00016984]
[1766969480718,0.0113319,88317.0,88294.0,0.09636]
[1766969481022,0.0113323,88314.0,88294.0,0.09636]
[1766969481421,0.11415354,88310.0,88289.0,0.15392]
[1766969481622,0.0113332,88307.0,88289.0,0.15392]
[1766969482122,0.0688932,88307.0,88289.0,0.15392]
[1766969482318,0.0688932,88307.0,88285.0,0.0113359]
[1766969482523,0.09636,88306.0,88285.0,0.0113359]
[1766969482827,0.09636,88306.0,88287.0,0.00016984]
[1766969483328,0.0113334,88305.0,88287.0,0.00016984]
[1766969483624,0.0113334,88305.0,88283.0,0.00226545]
[1766969483822,0.0113339,88302.0,88278.0,0.09636]
[1766969484127,0.0113343,88299.0,88278.0,0.15392]
[1766969484438,0.05756,88298.0,88278.0,0.08436]
[1766969484627,0.05756,88298.0,88279.0,0.00016984]
[1766969485022,0.05756,88298.0,88272.0,0.01352]
[1766969485920,0.0113349,88294.0,88272.0,0.01352]
[1766969486531,0.09636,88296.0,88275.0,0.0113372]
[1766969487327,0.05756,88295.0,88277.0,0.0113369]
[1766969488315,0.10152755,88308.0,88272.0,0.01352]
[1766969488316,0.08039793,88301.0,88272.0,0.01352]
[1766969488516,0.05752,88300.0,88272.0,0.01352]
[1766969489724,0.02651584,88299.0,88272.0,0.01352]
[1766969489927,0.02651584,88298.0,88272.0,0.01352]
[1766969490127,0.02651584,88297.0,88272.0,0.01352]
[1766969490315,0.02651584,88296.0,88282.0,0.0113363]
[1766969490520,0.02651584,88295.0,88282.0,0.0113363]
[1766969490724,0.02651584,88294.0,88282.0,0.0113363]
[1766969490923,0.02651584,88293.0,88282.0,0.0113363]
[1766969491126,0.02651584,88292.0,88282.0,0.0113363]
[1766969491321,0.02651584,88291.0,88282.0,0.0113363]
[1766969491630,4e-08,88290.0,88285.0,0.0113359]
[1766969491943,0.05752,88300.0,88281.0,0.05752]
[1766969492429,0.05752,88300.0,88284.0,0.0113361]
[1766969492629,0.09173043,88313.0,88290.0,0.0113353]
[1766969492827,0.05752,88311.0,88290.0,0.0113353]
[1766969493225,0.0113336,88304.0,88286.0,0.05752]
[1766969493526,0.0113336,88304.0,88284.0,0.05748]
[1766969494521,0.11415354,88310.0,88286.0,0.0113358]
[1766969494728,0.0113328,88310.0,88289.0,0.0113354]
[1766969495422,0.0113332,88307.0,88285.0,0.0113359]
[1766969496032,0.05752,88311.0,88284.0,0.05748]
[1766969496333,0.11415354,88310.0,88284.0,0.05748]
[1766969496734,0.0113341,88300.0,88284.0,0.05748]
[1766969501929,0.0113344,88298.0,88284.0,0.05748]
[1766969502638,0.0113347,88296.0,88284.0,0.05748]
[1766969503033,0.0113342,88299.0,88284.0,0.05748]
[1766969503539,0.02527779,88298.0,88284.0,0.05748]
[1766969503737,0.02527779,88297.0,88284.0,0.05748]
[1766969503937,0.02527779,88296.0,88284.0,0.05748]
[1766969504128,0.02527779,88295.0,88284.0,0.05748]
[1766969504323,0.02527779,88294.0,88284.0,0.05748]
[1766969504537,0.011333,88309.0,88290.0,0.0113353]
[1766969504729,0.05744,88303.0,88290.0,0.0113353]
[1766969504935,0.05744,88312.0,88298.0,0.0113342]
[1766969505328,0.05744,88312.0,88295.0,0.0113347]
[1766969506534,0.05744,88312.0,88297.0,0.0113343]
[1766969507041,0.09172873,88326.0,88295.0,0.09636]
[1766969507230,0.15376,88325.0,88295.0,0.09636]
[1766969507625,0.0113308,88326.0,88295.0,0.09636]
[1766969507626,0.15376,88324.0,88295.0,0.09636]
[1766969508039,0.00016984,88318.0,88305.0,0.0113333]
[1766969510137,0.00016984,88318.0,88303.0,0.0113335]
[1766969511843,0.0113323,88314.0,88301.0,0.05756984]
[1766969513245,0.00016984,88318.0,88293.0,0.01302072]
[1766969513435,0.00016984,88318.0,88288.0,0.0113355]
[1766969513635,0.00016984,88318.0,88289.0,0.114]
[1766969514138,0.0113331,88308.0,88290.0,0.0113352]
[1766969514845,0.0113335,88305.0,88289.0,0.114]
[1766969515544,0.0113338,88302.0,88289.0,0.114]
[1766969515740,0.0113338,88302.0,88282.0,0.1076962]
[1766969515948,0.0113338,88302.0,88283.0,0.05736]
[1766969516443,0.0113342,88299.0,88283.0,0.05736]
[1766969516632,0.0113344,88297.0,88283.0,0.05736]
[1766969516832,0.0113347,88295.0,88283.0,0.05736]
[1766969517032,0.02517713,88294.0,88283.0,0.05736]
[1766969517234,0.02517713,88294.0,88283.0,0.03359506]
[1766969517936,0.02517713,88293.0,88283.0,0.03359506]
[1766969518136,0.02517713,88292.0,88283.0,0.03359506]
[1766969518342,0.02517713,88291.0,88283.0,0.03359506]
[1766969518542,0.02517713,88290.0,88283.0,0.03359506]
[1766969518742,0.02517713,88289.0,88283.0,0.03359506]
[1766969519046,0.02517713,88288.0,88283.0,0.03359506]
[1766969519248,0.02517713,88287.0,88283.0,0.03359506]
[1766969519444,0.02517713,88286.0,88283.0,0.03359506]
[1766969519632,0.02517713,88285.0,88283.0,0.03359506]
[1766969519837,0.0113343,88298.0,88283.0,0.03359506]
[1766969520037,0.02518543,88297.0,88283.0,0.03359506]
[1766969520354,0.0113349,88293.0,88278.0,0.05736]
[1766969520651,0.02518543,88292.0,88278.0,0.0686968]
[1766969520839,0.0113345,88297.0,88278.0,0.0686968]
[1766969520840,0.02518543,88291.0,88278.0,0.0686968]
[1766969521041,0.02518543,88290.0,88278.0,0.0686968]
[1766969521347,0.02518543,88289.0,88278.0,0.0686968]
[1766969521542,0.00016984,88300.0,88281.0,0.0113364]
[1766969521750,0.011335,88293.0,88278.0,0.05736]
[1766969522049,0.0113348,88295.0,88273.0,0.0113375]
[1766969522238,0.00016984,88293.0,88273.0,0.0113375]
[1766969522435,0.0113355,88289.0,88270.0,0.10938378]
[1766969522647,0.00016984,88293.0,88270.0,0.1076979]
[1766969522845,0.00016984,88293.0,88273.0,0.0113375]
[1766969523647,0.0113351,88292.0,88270.0,0.09636]
[1766969524235,0.00016984,88293.0,88277.0,0.0113369]
[1766969524446,0.00016984,88293.0,88274.0,0.05736]
[1766969524639,0.0113351,88292.0,88274.0,0.05736]
[1766969525151,0.00016984,88293.0,88275.0,0.0113372]
[1766969525850,0.00016984,88293.0,88274.0,0.05736]
[1766969526236,0.0113355,88289.0,88274.0,0.05736]
[1766969527553,0.00016984,88293.0,88274.0,0.05736]
[1766969527851,0.00016984,88293.0,88270.0,0.09636]
[1766969528242,0.0113357,88288.0,88270.0,0.09636]
[1766969530542,0.00016984,88293.0,88270.0,0.09636]
[1766969530744,0.0113357,88287.0,88270.0,0.09636]
[1766969531147,0.0113339,88302.0,88270.0,0.09636]
[1766969531148,0.08039793,88314.0,88270.0,0.09636]
[1766969531452,0.011334,88301.0,88283.0,0.0113361]
[1766969531647,0.15368,88300.0,88279.0,0.0113366]
[1766969531852,0.15368,88300.0,88276.0,0.05732]
[1766969532044,0.0113346,88296.0,88277.0,0.0113369]
[1766969532244,0.00016984,88295.0,88280.0,0.0113366]
[1766969532753,0.00016984,88295.0,88278.0,0.00016984]
[1766969532944,0.0113352,88292.0,88278.0,0.00016984]
[1766969533146,0.0113354,88290.0,88278.0,0.00016984]
[1766969533344,0.0113349,88294.0,88278.0,0.00016984]
[1766969533940,4.74e-06,88295.0,88278.0,0.00016984]
[1766969534140,0.1076945,88297.0,88278.0,0.00016984]
[1766969534353,0.0113348,88294.0,88278.0,0.00016984]
[1766969535045,0.0113352,88292.0,88278.0,0.00016984]
[1766969536755,0.0113349,88294.0,88278.0,0.00016984]
[1766969537153,0.10135771,88331.0,88283.0,0.00226545]
[1766969537356,0.0113325,88313.0,88294.0,0.0113348]
[1766969537558,0.02490383,88312.0,88294.0,0.0113348]
[1766969537760,0.02490383,88311.0,88297.0,0.0113344]
[1766969537954,0.09636,88326.0,88295.0,0.05732]
[1766969538160,0.00016984,88319.0,88305.0,0.0113333]
[1766969538454,0.0013178,88318.0,88305.0,0.0113333]
[1766969538759,0.09636,88324.0,88308.0,0.0113329]
[1766969538955,0.09636,88324.0,88304.0,0.0113334]
[1766969539355,0.00016984,88323.0,88304.0,0.0113334]
[1766969539760,0.00016984,88323.0,88307.0,0.0113331]
[1766969540146,0.00016984,88323.0,88302.0,0.00016984]
[1766969540352,0.00016984,88323.0,88303.0,0.0113336]
[1766969541662,0.24096,88341.0,88302.0,0.00016984]
[1766969541663,0.1650103,88330.0,88310.0,0.0113327]
[1766969541863,0.0113303,88330.0,88310.0,0.0113327]
[1766969542363,0.15368,88331.0,88313.0,0.0113323]
[1766969542562,0.15384984,88331.0,88316.0,0.0113319]
[1766969543156,0.0113302,88330.0,88308.0,0.0113329]
[1766969543361,0.0113302,88330.0,88311.0,0.0113326]
[1766969543762,0.15384984,88331.0,88306.0,0.05732]
[1766969544265,0.0113306,88327.0,88306.0,0.05732]
[1766969545052,0.011331,88324.0,88306.0,0.05732]
[1766969545267,0.0113314,88321.0,88302.0,0.00016984]
[1766969545867,0.00016984,88331.0,88302.0,0.00016984]
[1766969546162,0.15364,88330.0,88308.0,0.0113329]
[1766969546365,0.05728,88329.0,88311.0,0.0113326]
[1766969546968,0.05728,88329.0,88307.0,0.0113331]
[1766969547277,0.0113306,88328.0,88307.0,0.0113331]
[1766969548372,0.05728,88329.0,88302.0,0.00016984]
[1766969548670,0.05728,88329.0,88310.0,0.0113327]
[1766969549068,0.00016984,88331.0,88302.0,0.00016984]
[1766969549271,0.09636,88353.0,88303.0,0.15364]
[1766969549472,3.92e-06,88343.0,88324.0,0.0113308]
[1766969549771,3.92e-06,88343.0,88325.0,0.15364]
[1766969550076,3.92e-06,88343.0,88331.0,0.01133]
[1766969551268,6.52e-06,88346.0,88331.0,0.01133]
[1766969551472,0.14172,88353.0,88334.0,0.0113296]
[1766969551667,0.02472833,88352.0,88339.0,0.0113289]
[1766969551983,0.09636,88353.0,88339.0,0.0113289]
[1766969552271,0.02472667,88352.0,88341.0,0.0113288]
[1766969552470,0.08039793,88386.0,88341.0,0.0113288]
[1766969552471,0.0113258,88365.0,88341.0,0.0113288]
[1766969552777,0.15364,88368.0,88340.0,0.09636]
[1766969553474,0.0113261,88362.0,88340.0,0.09636]
[1766969554569,0.0113265,88359.0,88340.0,0.09636]
[1766969554772,0.0685665,88359.0,88340.0,0.09636]
[1766969554970,0.011327,88356.0,88338.0,0.00016984]
[1766969555269,0.0113277,88350.0,88338.0,0.00016984]
[1766969555471,0.0113272,88354.0,88338.0,0.00016984]
[1766969558973,0.09632,88358.0,88327.0,0.0113306]
[1766969559168,0.09632,88358.0,88330.0,0.0113301]
[1766969559367,0.0113277,88350.0,88330.0,0.0113301]
[1766969559567,0.05724,88349.0,88330.0,0.0113301]
[1766969559763,0.08039793,88372.0,88325.0,0.15356]
[1766969559968,0.00016984,88356.0,88339.0,0.00016984]
[1766969560169,0.15356,88355.0,88331.0,0.01133]
[1766969561079,0.15356,88355.0,88334.0,0.00016984]
[1766969561274,0.0113275,88352.0,88334.0,0.00016984]
[1766969561480,0.0113278,88349.0,88334.0,0.00016984]
[1766969562374,0.0113272,88353.0,88334.0,0.00016984]
[1766969562581,0.15356,88355.0,88335.0,0.0113295]
[1766969562781,0.0113272,88353.0,88334.0,0.00016984]
[1766969563180,0.15356,88355.0,88334.0,0.00016984]
[1766969564083,0.0113277,88350.0,88334.0,0.00016984]
[1766969565887,0.011328,88347.0,88334.0,0.00016984]
[1766969566478,0.0113276,88351.0,88334.0,0.00016984]
[1766969566787,0.02434719,88350.0,88334.0,0.00016984]
[1766969566992,0.0113276,88351.0,88334.0,0.00016984]
[1766969567286,0.02434721,88350.0,88334.0,0.00016984]
[1766969567485,0.02434721,88349.0,88334.0,0.00016984]
[1766969567684,0.0113276,88351.0,88334.0,0.00016984]
[1766969567887,0.0113278,88349.0,88334.0,0.00016984]
[1766969568779,0.02436161,88348.0,88313.0,0.00226469]
[1766969568985,0.12568853,88325.0,88304.0,0.0113335]
[1766969569187,0.05724,88324.0,88304.0,0.0113335]
[1766969569686,0.0113312,88322.0,88304.0,0.0113335]
[1766969569983,0.01150104,88322.0,88304.0,0.00016984]
[1766969570279,0.0113316,88319.0,88304.0,0.00016984]
[1766969571388,0.0113321,88316.0,88304.0,0.00016984]
[1766969571888,0.00016984,88322.0,88304.0,0.00016984]
[1766969572291,0.00016984,88322.0,88293.0,0.09632]
[1766969572788,0.11435763,88320.0,88293.0,0.09632]
[1766969573177,0.0113325,88312.0,88298.0,0.00016984]
[1766969573377,0.05724,88315.0,88298.0,0.00016984]
[1766969574080,0.0113323,88314.0,88298.0,0.00016984]
[1766969575090,0.05724,88315.0,88298.0,0.00016984]
[1766969575592,0.0685722,88315.0,88298.0,0.00016984]
[1766969575784,0.05724,88315.0,88298.0,0.00016984]
[1766969575991,0.05724,88315.0,88299.0,0.0113341]
[1766969576885,0.09632,88329.0,88312.0,0.0113325]
[1766969577082,0.15352,88328.0,88312.0,0.0113325]
[1766969577281,0.15352,88328.0,88304.0,0.09632]
[1766969577282,0.0113301,88331.0,88308.0,0.0113329]
[1766969577592,0.17794261,88330.0,88308.0,0.0113329]
[1766969577792,0.02438261,88329.0,88308.0,0.0113329]
[1766969577993,0.00016984,88327.0,88310.0,0.00016984]
[1766969578582,0.00016984,88327.0,88304.0,0.09632]
[1766969578877,0.00016984,88327.0,88305.0,0.0113334]
[1766969579786,0.00016984,88327.0,88307.0,0.00016984]
[1766969580095,0.0113308,88326.0,88307.0,0.00016984]
[1766969581782,0.00016984,88327.0,88308.0,0.0113329]
[1766969581982,0.00016984,88327.0,88311.0,0.0113326]
[1766969582194,0.15356,88326.0,88311.0,0.0113326]
[1766969583295,0.00016984,88327.0,88311.0,0.0113326]
[1766969583595,0.00016984,88327.0,88307.0,0.00016984]
[1766969583596,0.0572,88325.0,88307.0,0.01150294]
[1766969584297,0.0685308,88325.0,88307.0,0.01150294]
[1766969584995,0.0572,88325.0,88307.0,0.01150294]
[1766969586300,0.0572,88325.0,88310.0,0.0113326]
[1766969589397,0.0113311,88324.0,88307.0,0.00016984]
[1766969589700,0.0572,88325.0,88304.0,0.09632]